bitfinex/quotes_SOLUSD_20250612
["timestamp","ask_amount","ask_price","bid_price","bid_amount"]
[1749772263711,15.07412541,152.71,152.67,15.07412541]
[1749772263912,15.07412541,152.71,152.67,41.89412541]
[1749772264224,9.00333949,152.7,152.68,15.07412541]
[1749772264432,2.45450781,152.69,152.67,41.89412541]
[1749772264646,6.54883201,152.7,152.67,41.89412541]
[1749772264838,2.45450453,152.69,152.67,41.89412541]
[1749772265140,6.54883201,152.7,152.67,41.89412541]
[1749772265339,2.45450418,152.69,152.67,41.89412541]
[1749772265647,6.54883201,152.7,152.67,41.89412541]
[1749772265830,2.45450852,152.69,152.67,41.89412541]
[1749772266143,6.54883201,152.7,152.67,26.82]
[1749772266438,15.07412541,152.68,152.64,5.78]
[1749772266644,15.07412541,152.67,152.64,5.78]
[1749772266812,22.92080319,152.7,152.64,5.78]
[1749772267016,22.92080319,152.7,152.64,20.85412541]
[1749772267017,15.07412541,152.69,152.64,20.85412541]
[1749772267445,15.07412541,152.68,152.64,20.85412541]
[1749772268225,2.45480098,152.67,152.64,20.85412541]
[1749772268424,21.62404708,152.68,152.64,20.85412541]
[1749772269521,21.62404708,152.68,152.64,47.67412541]
[1749772269723,6.54992167,152.68,152.64,47.67412541]
[1749772269930,21.6235003,152.69,152.65,15.07412541]
[1749772270133,6.54889116,152.7,152.67,15.07412541]
[1749772270335,6.54889116,152.7,152.67,26.82]
[1749772271628,2.45531897,152.69,152.67,26.82]
[1749772271828,2.45531932,152.68,152.67,26.82]
[1749772272130,2.45531968,152.68,152.67,26.82]
[1749772272336,6.54889116,152.7,152.67,26.82]
[1749772273138,6.54889116,152.7,152.67,41.89412541]
[1749772274250,2.45527675,152.69,152.67,26.82]
[1749772274455,15.07412541,152.7,152.67,26.82]
[1749772274933,22.91775798,152.72,152.67,26.82]
[1749772275133,15.07412541,152.69,152.67,26.82]
[1749772276132,15.07412541,152.7,152.67,26.82]
[1749772276334,2.45551182,152.69,152.67,26.82]
[1749772276655,2.45540937,152.68,152.67,26.82]
[1749772276959,15.07412541,152.7,152.67,26.82]
[1749772278248,21.62334277,152.69,152.67,26.82]
[1749772280451,16.36982713,152.72,152.67,26.82]
[1749772280452,22.91775798,152.72,152.67,26.82]
[1749772280747,6.54793085,152.72,152.67,41.89412541]
[1749772281050,17.52944447,152.71,152.67,26.82]
[1749772281255,15.07412541,152.71,152.67,26.82]
[1749772282640,6.54878847,152.7,152.67,26.82]
[1749772283855,2.45537766,152.69,152.67,26.82]
[1749772284053,21.62291388,152.7,152.67,26.82]
[1749772284751,15.07412541,152.7,152.67,26.82]
[1749772285131,15.07412541,152.69,152.64,94.28]
[1749772285332,15.07412541,152.69,152.66,26.84]
[1749772286157,15.07412541,152.67,152.64,94.28]
[1749772286336,15.07412541,152.67,152.64,32.62]
[1749772286944,6.55050438,152.66,152.64,32.62]
[1749772287347,6.55050438,152.66,152.64,5.78]
[1749772287754,21.62462979,152.66,152.64,5.78]
[1749772288350,15.07412541,152.65,152.64,5.78]
[1749772288945,21.62505891,152.65,152.64,5.78]
[1749772290167,24.08114957,152.65,152.64,5.78]
[1749772290363,21.62505891,152.65,152.64,5.78]
[1749772291742,6.5509335,152.65,152.64,5.78]
[1749772291974,21.62505891,152.65,152.64,5.78]
[1749772293455,24.08137861,152.65,152.64,5.78]
[1749772294452,24.076384,152.65,152.64,5.78]
[1749772294848,24.07639684,152.65,152.64,5.78]
[1749772295084,21.62505891,152.65,152.64,5.78]
[1749772295250,6.5509335,152.65,152.64,5.78]
[1749772295451,21.62505891,152.65,152.64,5.78]
[1749772295777,24.07639684,152.65,152.64,5.78]
[1749772296450,21.62505891,152.65,152.64,5.78]
[1749772296870,17.52546334,152.65,152.64,5.78]
[1749772297057,41.07412541,152.65,152.64,5.78]
[1749772298429,2.45118657,152.65,152.64,5.78]
[1749772298872,21.62505891,152.65,152.64,5.78]
[1749772299076,47.62505891,152.65,152.64,5.78]
[1749772300174,50.07625034,152.65,152.64,5.78]
[1749772300672,50.07623751,152.65,152.64,5.78]
[1749772300882,50.07624946,152.65,152.64,5.78]
[1749772301463,47.62505891,152.65,152.64,5.78]
[1749772301781,50.07624946,152.65,152.64,5.78]
[1749772302361,47.62505891,152.65,152.64,5.78]
[1749772302571,50.07624946,152.65,152.64,5.78]
[1749772302767,50.07621488,152.65,152.64,5.78]
[1749772302969,47.62505891,152.65,152.64,5.78]
[1749772303378,50.07620662,152.65,152.64,5.78]
[1749772303690,35.00208121,152.65,152.64,5.78]
[1749772303867,50.07626229,152.65,152.64,5.78]
[1749772304186,50.07625155,152.65,152.64,5.78]
[1749772304372,50.07621687,152.65,152.64,5.78]
[1749772304569,50.07619297,152.65,152.64,5.78]
[1749772304766,50.07616385,152.65,152.64,5.78]
[1749772305159,50.07622644,152.65,152.64,5.78]
[1749772305361,47.62505891,152.65,152.64,5.78]
[1749772305561,50.07622644,152.65,152.64,5.78]
[1749772306173,50.07623042,152.65,152.64,5.78]
[1749772306468,47.62505891,152.65,152.64,5.78]
[1749772306686,50.07623042,152.65,152.64,5.78]
[1749772307286,50.07619546,152.65,152.64,5.78]
[1749772308188,50.07623042,152.65,152.64,5.78]
[1749772308696,50.07626229,152.65,152.64,5.78]
[1749772308890,47.62505891,152.65,152.64,5.78]
[1749772309391,50.0761468,152.65,152.64,5.78]
[1749772309596,50.07624453,152.65,152.64,5.78]
[1749772309795,50.07627624,152.65,152.64,5.78]
[1749772309968,35.00215068,152.65,152.64,5.78]
[1749772310167,50.07627609,152.65,152.64,5.78]
[1749772310364,50.07628133,152.65,152.64,5.78]
[1749772310586,50.07629417,152.65,152.64,5.78]
[1749772310787,47.62505891,152.65,152.64,5.78]
[1749772310968,50.07629422,152.65,152.64,5.78]
[1749772311169,50.07629423,152.65,152.64,5.78]
[1749772311570,50.0762814,152.65,152.64,5.78]
[1749772311972,50.07628138,152.65,152.64,5.78]
[1749772312184,47.62505891,152.65,152.64,5.78]
[1749772312387,50.07694577,152.65,152.64,5.78]
[1749772312696,47.62505891,152.65,152.64,5.78]
[1749772312895,73.61126653,152.65,152.64,5.78]
[1749772313100,87.53671344,152.65,152.58,15.07412541]
[1749772313287,41.07412541,152.61,152.57,5.78]
[1749772314671,6.55307994,152.6,152.57,5.78]
[1749772315172,6.55307994,152.6,152.57,20.85412541]
[1749772316106,47.62689761,152.61,152.57,20.85412541]
[1749772316275,2.45223212,152.6,152.57,20.85412541]
[1749772316796,2.45223247,152.6,152.57,5.78]
[1749772317103,47.62680251,152.61,152.57,20.85412541]
[1749772317770,32.5526771,152.61,152.57,5.78]
[1749772317971,2.45226816,152.6,152.57,20.85412541]
[1749772318171,2.45226862,152.6,152.57,20.85412541]
[1749772318405,2.45226303,152.6,152.57,20.85412541]
[1749772318800,32.5526771,152.61,152.57,20.85412541]
[1749772319091,15.07412541,152.62,152.57,20.85412541]
[1749772319092,2.45226267,152.6,152.57,20.85412541]
[1749772319305,2.45226267,152.61,152.57,20.85412541]
[1749772319509,21.62673231,152.62,152.57,5.78]
[1749772319679,21.62673231,152.62,152.57,20.85412541]
[1749772319994,15.07412541,152.59,152.55,88.5]
[1749772320198,15.07412541,152.58,152.54,5.78]
[1749772320378,17.52660933,152.59,152.55,15.07412541]
[1749772320577,15.07412541,152.59,152.55,15.07412541]
[1749772322181,21.62794244,152.59,152.55,15.07412541]
[1749772323072,6.55327393,152.6,152.56,15.07412541]
[1749772323271,2.45232206,152.6,152.58,15.07412541]
[1749772323602,2.45230798,152.6,152.58,15.07412541]
[1749772323974,2.45226872,152.6,152.57,26.84]
[1749772324273,2.45226872,152.6,152.57,41.91412541]
[1749772324274,9.00562004,152.6,152.57,41.91412541]
[1749772324475,6.55335132,152.6,152.58,15.07412541]
[1749772325393,6.55335132,152.6,152.57,41.91412541]
[1749772327235,6.55335132,152.6,152.57,26.84]
[1749772327521,6.55335132,152.6,152.57,41.91412541]
[1749772330524,6.55335132,152.6,152.57,15.07412541]
[1749772330911,9.00227577,152.6,152.57,15.07412541]
[1749772331205,6.55335132,152.6,152.57,15.07412541]
[1749772331608,6.55335132,152.6,152.56,26.84]
[1749772331804,32.55179191,152.63,152.59,15.07412541]
[1749772332006,6.55155,152.64,152.62,15.07412541]
[1749772332200,2.44848738,152.65,152.63,15.07412541]
[1749772332414,2.44827076,152.65,152.64,15.07412541]
[1749772332610,2.44826978,152.65,152.64,15.07412541]
[1749772332821,6.55050438,152.66,152.63,15.07412541]
[1749772333014,8.99868046,152.66,152.64,15.07412541]
[1749772333213,8.99864238,152.66,152.64,15.07412541]
[1749772333529,8.99860393,152.66,152.64,15.07412541]
[1749772333732,8.9983564,152.67,152.65,15.07412541]
[1749772334023,2.44793666,152.67,152.66,15.07412541]
[1749772334233,2.44785911,152.68,152.66,15.07412541]
[1749772334400,2.44785876,152.68,152.66,15.07412541]
[1749772334601,2.44785877,152.68,152.66,15.07412541]
[1749772334928,2.4478679,152.68,152.66,15.07412541]
[1749772335140,11.4440123,152.69,152.66,15.07412541]
[1749772335309,6.55007532,152.67,152.66,15.07412541]
[1749772335616,8.99915142,152.67,152.66,15.07412541]
[1749772335820,6.55007532,152.67,152.66,15.07412541]
[1749772336214,8.99915142,152.67,152.66,15.07412541]
[1749772336422,6.54921736,152.69,152.66,15.07412541]
[1749772336626,2.44907916,152.68,152.66,15.07412541]
[1749772336815,6.54921736,152.69,152.66,15.07412541]
[1749772337014,2.44911423,152.68,152.66,15.07412541]
[1749772337233,6.54921736,152.69,152.66,15.07412541]
[1749772337530,2.44911082,152.68,152.66,15.07412541]
[1749772337736,2.44907539,152.67,152.66,15.07412541]
[1749772337905,2.44907575,152.68,152.66,15.07412541]
[1749772338108,2.44907575,152.67,152.66,15.07412541]
[1749772338327,8.99904073,152.68,152.66,15.07412541]
[1749772338531,6.54996463,152.68,152.66,15.07412541]
[1749772339409,6.54921736,152.69,152.66,15.07412541]
[1749772339612,2.44785242,152.68,152.66,15.07412541]
[1749772339929,2.44785159,152.68,152.66,15.07412541]
[1749772340413,2.4478348,152.68,152.66,15.07412541]
[1749772340618,2.44768081,152.68,152.65,0.14216157]
[1749772340830,6.54921736,152.69,152.67,15.07412541]
[1749772341015,8.99693627,152.69,152.67,15.07412541]
[1749772341338,21.62334277,152.69,152.65,15.07412541]
[1749772343836,37.99638619,152.69,152.65,15.07412541]
[1749772344042,15.07412541,152.68,152.64,15.07412541]
[1749772345028,6.55007532,152.67,152.64,15.07412541]
[1749772345634,6.55007532,152.67,152.65,15.07412541]
[1749772346538,6.54964631,152.68,152.65,15.07412541]
[1749772346740,21.62377172,152.68,152.64,15.07412541]
[1749772347619,6.54964631,152.68,152.65,15.07412541]
[1749772348933,16.37304342,152.69,152.65,15.07412541]
[1749772349253,11.43319927,152.7,152.67,15.07412541]
[1749772349418,11.43319927,152.7,152.63,0.28432314]
[1749772349618,42.87929586,152.7,152.66,15.07412541]
[1749772349822,37.99488506,152.7,152.66,15.07412541]
[1749772350244,22.92075965,152.7,152.66,15.07412541]
[1749772350426,42.87827786,152.7,152.66,15.07412541]
[1749772350624,37.99488506,152.7,152.66,15.07412541]
[1749772354439,6.54878847,152.7,152.67,15.07412541]
[1749772355537,6.54878847,152.7,152.69,15.07412541]
[1749772356618,22.91781698,152.72,152.69,15.07412541]
[1749772357034,6.54793085,152.72,152.69,15.07412541]
[1749772357343,6.54793085,152.72,152.7,15.07412541]
[1749772358319,6.54750212,152.73,152.7,15.07412541]
[1749772358745,6.54750212,152.73,152.69,15.07412541]
[1749772360950,37.99038284,152.73,152.68,15.07412541]
[1749772362458,22.91625743,152.73,152.68,15.07412541]
[1749772362659,37.99038284,152.73,152.68,15.07412541]
[1749772363339,22.91625743,152.73,152.69,15.07412541]
[1749772366169,37.99038284,152.73,152.69,15.07412541]
[1749772367969,21.62162753,152.73,152.69,15.07412541]
[1749772369667,2.45481947,152.72,152.69,15.07412541]
[1749772369838,6.54750212,152.73,152.69,15.07412541]
[1749772370041,2.45481947,152.72,152.69,15.07412541]
[1749772370271,2.45481983,152.71,152.69,15.07412541]
[1749772370450,2.45480734,152.7,152.69,15.07412541]
[1749772370649,6.54750212,152.73,152.69,15.07412541]
[1749772370852,2.45480769,152.72,152.69,15.07412541]
[1749772371054,6.54750212,152.73,152.69,15.07412541]
[1749772371252,2.45481452,152.72,152.69,15.07412541]
[1749772371456,9.002317,152.73,152.69,15.07412541]
[1749772371661,41.07412541,152.74,152.7,15.07412541]
[1749772371851,2.44544049,152.73,152.7,15.07412541]
[1749772372058,8.99252045,152.74,152.71,15.07412541]
[1749772372262,8.99244243,152.74,152.71,15.07412541]
[1749772372957,6.5470924,152.74,152.71,15.07412541]
[1749772373363,8.99242963,152.74,152.71,15.07412541]
[1749772373563,6.5470924,152.74,152.71,15.07412541]
[1749772373767,8.99242963,152.74,152.71,15.07412541]
[1749772374067,6.5470924,152.74,152.71,15.07412541]
[1749772374370,8.99242963,152.74,152.71,15.07412541]
[1749772375160,8.99242963,152.74,152.7,15.07412541]
[1749772375363,24.06655504,152.74,152.7,15.07412541]
[1749772375565,2.44536539,152.73,152.7,15.07412541]
[1749772375872,2.44536575,152.73,152.7,15.07412541]
[1749772376044,21.62121781,152.74,152.7,15.07412541]
[1749772376361,2.44535657,152.73,152.7,15.07412541]
[1749772376560,8.99244897,152.74,152.7,15.07412541]
[1749772376866,2.44530782,152.74,152.72,15.07412541]
[1749772377063,2.44530782,152.75,152.72,15.07412541]
[1749772377370,8.99204454,152.75,152.72,15.07412541]
[1749772377571,6.54673672,152.75,152.72,15.07412541]
[1749772377776,2.44525365,152.74,152.72,15.07412541]
[1749772377974,8.9918525,152.75,152.72,15.07412541]
[1749772378157,8.99185219,152.75,152.72,15.07412541]
[1749772378357,8.99185217,152.75,152.72,15.07412541]
[1749772378576,8.99185221,152.75,152.72,15.07412541]
[1749772378871,6.54673672,152.75,152.72,15.07412541]
[1749772379074,8.9918466,152.75,152.72,15.07412541]
[1749772379279,8.9918938,152.75,152.72,15.07412541]
[1749772379452,15.07412541,152.74,152.7,41.89412541]
[1749772379784,17.51930738,152.74,152.7,15.07412541]
[1749772380074,17.51930738,152.74,152.69,41.89412541]
[1749772380278,2.44529659,152.73,152.69,41.89412541]
[1749772380448,15.07412541,152.74,152.69,41.89412541]
[1749772380646,15.07412541,152.73,152.68,109.35412541]
[1749772380848,15.07412541,152.73,152.68,136.17412541]
[1749772381054,6.54793085,152.72,152.68,136.17412541]
[1749772381390,6.54793085,152.72,152.68,109.35412541]
[1749772381680,8.99336644,152.72,152.68,136.17412541]
[1749772382064,8.99336597,152.72,152.68,94.28]
[1749772382366,15.07412541,152.71,152.68,121.08]
[1749772382558,17.51968686,152.71,152.68,121.08]
[1749772382760,6.54793085,152.72,152.68,121.08]
[1749772382965,24.06761735,152.72,152.68,121.08]
[1749772383287,8.99420017,152.71,152.68,94.28]
[1749772383584,8.99420053,152.71,152.68,94.28]
[1749772384452,6.54863908,152.71,152.68,94.28]
[1749772385381,8.99420053,152.71,152.68,94.28]
[1749772386287,6.54863908,152.71,152.68,5.78]
[1749772386463,2.44651116,152.71,152.68,20.85412541]
[1749772386659,8.99448491,152.72,152.69,15.07412541]
[1749772386861,8.9944842,152.72,152.69,15.07412541]
[1749772387070,8.994497,152.72,152.69,15.07412541]
[1749772387258,8.994497,152.72,152.68,20.85412541]
[1749772387456,24.06862241,152.72,152.68,20.85412541]
[1749772387657,2.44649921,152.71,152.68,20.85412541]
[1749772387857,15.07412541,152.71,152.68,5.78]
[1749772388057,17.52065677,152.71,152.68,5.78]
[1749772388515,15.07412541,152.71,152.68,5.78]
[1749772388789,2.44653136,152.71,152.68,5.78]
[1749772388975,21.62215535,152.72,152.68,5.78]
[1749772389373,2.44652703,152.71,152.68,5.78]
[1749772389570,15.07412541,152.71,152.68,5.78]
[1749772389772,17.5206528,152.71,152.68,5.78]
[1749772389977,15.07412541,152.71,152.68,5.78]
[1749772390483,2.44649957,152.71,152.68,5.78]
[1749772390787,21.62215535,152.72,152.68,5.78]
[1749772390971,2.44648641,152.71,152.68,5.78]
[1749772391171,2.44648677,152.71,152.68,5.78]
[1749772391576,2.44648677,152.71,152.68,20.85412541]
[1749772391982,2.44649957,152.71,152.68,20.85412541]
[1749772392378,2.44650354,152.71,152.68,20.85412541]
[1749772393263,6.54878847,152.7,152.68,20.85412541]
[1749772393459,6.54878847,152.7,152.68,5.78]
[1749772393671,6.54878847,152.7,152.68,20.85412541]
[1749772394297,8.99488159,152.71,152.68,20.85412541]
[1749772394591,8.99489404,152.71,152.68,20.85412541]
[1749772394991,8.99501194,152.71,152.68,20.85412541]
[1749772395389,15.07412541,152.7,152.68,5.78]
[1749772395592,17.52085149,152.7,152.68,5.78]
[1749772395970,15.07412541,152.7,152.68,5.78]
[1749772396302,41.07412541,152.69,152.68,5.78]
[1749772396498,48.41450371,152.69,152.68,5.78]
[1749772396699,48.41456082,152.69,152.68,5.78]
[1749772396884,45.96730671,152.69,152.68,5.78]
[1749772397087,48.41457362,152.69,152.68,5.78]
[1749772397286,54.96380479,152.69,152.68,5.78]
[1749772397690,52.51652407,152.69,152.68,5.78]
[1749772398007,54.96380479,152.69,152.68,5.78]
[1749772398196,52.51652407,152.69,152.68,5.78]
[1749772398370,54.96381935,152.69,152.68,5.78]
[1749772399076,54.96380654,152.69,152.68,5.78]
[1749772400116,52.51652407,152.69,152.68,5.78]
[1749772400321,54.9698569,152.69,152.68,5.78]
[1749772401099,52.51652407,152.69,152.68,5.78]
[1749772401397,54.96984423,152.69,152.68,5.78]
[1749772401612,52.51652407,152.69,152.68,5.78]
[1749772401798,54.96984423,152.69,152.68,5.78]
[1749772402218,54.96985707,152.69,152.68,5.78]
[1749772403000,52.51652407,152.69,152.68,5.78]
[1749772403218,54.96985707,152.69,152.68,5.78]
[1749772404625,37.44239866,152.69,152.68,5.78]
[1749772404921,54.96985707,152.69,152.68,5.78]
[1749772405132,54.96985707,152.69,152.59,114.5]
[1749772405133,52.51652407,152.69,152.59,114.5]
[1749772405297,15.07412541,152.63,152.6,5.78]
[1749772405623,15.07412541,152.64,152.6,5.78]
[1749772405796,2.4535765,152.63,152.6,5.78]
[1749772406125,15.07412541,152.64,152.6,5.78]
[1749772406327,2.453585,152.63,152.6,5.78]
[1749772406624,15.07412541,152.64,152.6,5.78]
[1749772406921,2.453585,152.63,152.6,5.78]
[1749772407126,15.07412541,152.64,152.6,5.78]
[1749772407418,2.45357615,152.63,152.6,20.85412541]
[1749772407799,2.45357615,152.62,152.6,20.85412541]
[1749772407998,21.62548809,152.64,152.6,20.85412541]
[1749772408216,21.62548809,152.64,152.6,5.78]
[1749772408424,21.62548809,152.64,152.6,20.85412541]
[1749772416826,21.62548809,152.64,152.6,5.78]
[1749772417035,21.62548809,152.64,152.6,20.85412541]
[1749772419247,16.21987992,152.64,152.6,15.44851724]
[1749772419414,16.21987992,152.64,152.6,5.78]
[1749772419610,16.21987992,152.64,152.6,15.44851724]
[1749772421138,6.55136268,152.64,152.6,15.44851724]
[1749772421519,16.21987992,152.64,152.6,5.78]
[1749772423434,16.21987992,152.64,152.6,15.44851724]
[1749772423636,9.66851724,152.62,152.6,5.78]
[1749772424340,22.92976938,152.64,152.6,5.78]
[1749772424341,9.66851724,152.63,152.6,5.78]
[1749772426353,6.55136268,152.64,152.6,5.78]
[1749772426526,6.55136268,152.64,152.6,15.44851724]
[1749772430049,6.55136268,152.64,152.6,5.78]
[1749772430249,6.55136268,152.64,152.6,15.44851724]
[1749772431352,2.45524499,152.63,152.6,15.44851724]
[1749772431518,2.45524534,152.62,152.6,15.44851724]
[1749772431844,2.4552457,152.61,152.6,15.44851724]
[1749772432033,2.45525855,152.61,152.6,15.44851724]
[1749772432218,2.45522523,152.61,152.6,15.44851724]
[1749772432425,2.45523457,152.61,152.6,15.44851724]
[1749772432722,2.45523158,152.61,152.6,15.44851724]
[1749772432935,2.45508654,152.61,152.6,15.44851724]
[1749772433124,2.45501953,152.63,152.6,15.44851724]
[1749772433330,6.55050438,152.66,152.62,9.66851724]
[1749772433566,2.45496364,152.65,152.62,9.66851724]
[1749772433745,6.55050438,152.66,152.62,9.66851724]
[1749772433947,2.45496364,152.65,152.62,9.66851724]
[1749772434244,6.55050438,152.66,152.62,9.66851724]
[1749772434462,2.4547733,152.65,152.62,9.66851724]
[1749772434754,2.45475393,152.64,152.62,9.66851724]
[1749772434934,6.55117657,152.65,152.62,9.66851724]
[1749772435342,2.45441544,152.64,152.62,9.66851724]
[1749772435566,6.55117657,152.65,152.62,9.66851724]
[1749772436045,2.45433419,152.64,152.62,9.66851724]
[1749772436344,6.55117657,152.65,152.63,9.66851724]
[1749772436650,32.72795131,152.78,152.63,9.66851724]
[1749772436651,16.37204719,152.7,152.64,36.48851724]
[1749772436843,22.92083566,152.7,152.67,9.66851724]
[1749772437025,2.45450522,152.69,152.67,9.66851724]
[1749772437347,2.45435015,152.68,152.66,9.66851724]
[1749772437550,2.45435015,152.67,152.66,9.66851724]
[1749772437747,2.45429783,152.67,152.66,9.66851724]
[1749772438049,2.45419728,152.67,152.66,9.66851724]
[1749772438436,2.45420021,152.67,152.66,9.66851724]
[1749772439054,6.54958426,152.69,152.64,26.82]
[1749772439358,6.54958426,152.69,152.66,15.09469322]
[1749772439736,6.54958426,152.69,152.67,15.09469322]
[1749772440657,6.54958426,152.69,152.66,15.09469322]
[1749772441339,11.44375872,152.69,152.66,15.09469322]
[1749772441734,11.44375872,152.69,152.64,26.82]
[1749772441938,11.44375872,152.69,152.66,15.09469322]
[1749772443954,15.09469322,152.67,152.63,0.14216157]
[1749772444148,15.09469322,152.66,152.61,15.09469322]
[1749772444346,15.09469322,152.66,152.61,41.89469322]
[1749772444638,15.09469322,152.66,152.62,15.09469322]
[1749772445745,17.53900683,152.67,152.62,15.09469322]
[1749772445947,6.55050438,152.66,152.62,15.09469322]
[1749772447459,6.55050438,152.66,152.61,26.8]
[1749772447665,21.6451976,152.66,152.61,41.89469322]
[1749772448043,21.6451976,152.66,152.61,15.09469322]
[1749772448646,21.6451976,152.66,152.62,15.09469322]
[1749772449873,21.6451976,152.66,152.61,0.14216157]
[1749772450063,21.6451976,152.66,152.62,15.09469322]
[1749772450456,15.09469322,152.65,152.61,15.09469322]
[1749772451265,15.09469322,152.65,152.6,122.6581]
[1749772451474,48.92676535,152.66,152.6,5.78]
[1749772451640,15.09469322,152.63,152.6,5.78]
[1749772451847,15.09469322,152.64,152.6,5.78]
[1749772452060,15.09469322,152.63,152.6,5.78]
[1749772452438,6.5522212,152.62,152.6,5.78]
[1749772452675,21.64691442,152.62,152.58,5.78]
[1749772453461,26.54023536,152.62,152.58,5.78]
[1749772453666,21.64691442,152.62,152.58,5.78]
[1749772454369,26.54103415,152.62,152.58,5.78]
[1749772454568,21.64691442,152.62,152.58,5.78]
[1749772456668,15.09469322,152.61,152.58,5.78]
[1749772457246,6.5522212,152.62,152.58,5.78]
[1749772457448,24.09159231,152.62,152.58,5.78]
[1749772457665,21.64691442,152.62,152.58,5.78]
[1749772458047,15.09469322,152.61,152.58,5.78]
[1749772458751,17.53961076,152.62,152.58,5.78]
[1749772458960,15.09469322,152.62,152.58,5.78]
[1749772459168,21.64734376,152.61,152.58,5.78]
[1749772459965,6.55265054,152.61,152.58,5.78]
[1749772460478,38.02897012,152.61,152.58,5.78]
[1749772462675,22.9342769,152.61,152.58,5.78]
[1749772463394,6.55265054,152.61,152.58,5.78]
[1749772467387,9.67158902,152.61,152.58,5.78]
[1749772469583,6.55307994,152.6,152.58,5.78]
[1749772474595,16.22466896,152.6,152.58,5.78]
[1749772474778,9.67158902,152.59,152.53,88.5]
[1749772474991,9.67158902,152.58,152.54,5.78]
[1749772475397,9.67158902,152.58,152.54,15.45158902]
[1749772475921,6.55436848,152.57,152.54,42.27158902]
[1749772476519,6.55436848,152.57,152.54,15.45158902]
[1749772479823,6.55436848,152.57,152.54,42.27158902]
[1749772482223,6.55393715,152.59,152.55,9.67158902]
[1749772483124,6.55393715,152.59,152.56,9.67158902]
[1749772483616,6.55393715,152.59,152.57,9.67158902]
[1749772484324,6.55307994,152.6,152.57,9.67158902]
[1749772484633,16.22381022,152.62,152.57,9.67158902]
[1749772484913,6.5522212,152.62,152.59,9.67158902]
[1749772485114,6.5522212,152.62,152.6,9.67158902]
[1749772485624,6.5522212,152.62,152.59,9.67158902]
[1749772487299,6.5522212,152.62,152.59,15.10764361]
[1749772489022,6.5522212,152.62,152.57,115.32]
[1749772489221,6.5522212,152.62,152.59,15.10764361]
[1749772490598,9.00010473,152.62,152.59,15.10764361]
[1749772490917,9.00011755,152.62,152.57,115.32]
[1749772491093,9.00011755,152.62,152.59,15.10764361]
[1749772491292,6.5522212,152.62,152.59,15.10764361]
[1749772491492,9.00011736,152.62,152.59,15.10764361]
[1749772491713,9.0001178,152.62,152.59,15.10764361]
[1749772492400,6.5522212,152.62,152.59,15.10764361]
[1749772493499,6.5522212,152.62,152.6,15.10764361]
[1749772493500,2.4478966,152.62,152.6,15.10764361]
[1749772493703,21.65900629,152.64,152.6,15.10764361]
[1749772493918,2.44779828,152.63,152.6,15.10764361]
[1749772494221,2.44779911,152.63,152.6,15.10764361]
[1749772494398,2.44775894,152.63,152.6,15.10764361]
[1749772494597,6.55136268,152.64,152.6,15.10764361]
[1749772494812,24.1067087,152.64,152.58,88.64216157]
[1749772495004,6.5522212,152.62,152.6,15.10764361]
[1749772496718,6.5522212,152.62,152.6,20.88764361]
[1749772499103,7.61791725,152.69,152.61,15.10764361]
[1749772499313,7.34658131,152.68,152.65,15.10764361]
[1749772499493,12.24211725,152.71,152.63,26.82]
[1749772499494,6.54921736,152.69,152.63,26.82]
[1749772499693,2.44717025,152.68,152.65,15.10764361]
[1749772499889,2.44710389,152.68,152.64,15.10764361]
[1749772500202,7.34619992,152.68,152.64,15.10764361]
[1749772500401,7.34619992,152.68,152.63,26.82]
[1749772500402,4.89913504,152.68,152.63,26.82]
[1749772500615,15.10764361,152.66,152.63,26.82]
[1749772500997,6.5509335,152.65,152.63,26.82]
[1749772501197,15.10764361,152.64,152.63,26.82]
[1749772501425,15.10764361,152.64,152.6,47.70764361]
[1749772501596,15.10764361,152.64,152.6,32.6]
[1749772502916,6.55179191,152.63,152.6,32.6]
[1749772503224,6.55179191,152.63,152.6,5.78]
[1749772503524,8.99952617,152.63,152.6,5.78]
[1749772503824,6.55179191,152.63,152.6,20.88764361]
[1749772504206,8.99953232,152.63,152.6,20.88764361]
[1749772504522,6.55179191,152.63,152.6,109.38764361]
[1749772505022,2.45641775,152.62,152.6,109.38764361]
[1749772505322,2.45643098,152.61,152.6,109.38764361]
[1749772505515,6.55179191,152.63,152.6,94.28]
[1749772505824,6.55179191,152.63,152.6,109.38764361]
[1749772505825,2.45640564,152.62,152.6,109.38764361]
[1749772506022,2.45640527,152.61,152.6,109.38764361]
[1749772506325,2.45640558,152.61,152.6,109.38764361]
[1749772506517,6.55179191,152.63,152.6,109.38764361]